Cogmind - Beta 14 @@@ ROGUE MODE // 2025.03.16 @ 17:11:11 Player: Leech Result: Destroyed by Y-45 Defender with Heavy Assault Rifle Performance ------------- Evolutions (1) 500 Regions Visited (3) 600 Robots Destroyed (52) 260 Value Destroyed (1193) 1193 Prototype IDs (1) 20 Alien Tech Used (0) 0 Bonus (0) 0 TOTAL SCORE: 2573 Bonus ------- None Cogmind --------- Core Integrity 0/400 Matter 300/300 Energy 100/100 System Corruption 0% Temperature Cool (0) Movement Core (350) Ox6 Location -9/Materials Parts ------- > --- POWER (1) -------- (None) > --- PROPULSION (3) --- (None) > --- UTILITY (3) ------ Large Storage Unit > --- WEAPON (2) ------- (None) > --- INVENTORY (15) --- Ion Engine Heavy Ion Engine Heavy Ion Engine Aluminum Leg Wheel Improved Flight Unit Improved Flight Unit Small Storage Unit Huge Storage Unit Hacking Suite Advanced Beam Cannon Heavy Assault Rifle Heavy Assault Rifle Mace Peak State ------------ > --- POWER ------------ Improved Ion Engine > --- PROPULSION ------- Aluminum Leg Aluminum Leg Aluminum Leg > --- UTILITY ---------- Large Storage Unit Sensor Array Light Armor Plating > --- WEAPON ----------- Heavy Assault Rifle Heavy Assault Rifle > --- INVENTORY -------- Ion Engine Heavy Ion Engine Heavy Ion Engine Aluminum Leg Wheel Improved Flight Unit Improved Flight Unit Small Storage Unit Huge Storage Unit Hacking Suite Advanced Beam Cannon Heavy Assault Rifle Heavy Assault Rifle Grenade Launcher Mace [Rating: 15] Favorites ----------- Power Light Ion Engine Engine Light Ion Engine Propulsion Improved Hover Unit Leg Aluminum Leg Hover Unit Improved Hover Unit Utility Light Armor Plating Device Sensor Array Storage Small Storage Unit Processor Signal Interpreter Protection Light Armor Plating Weapon Improved Light Cannon Energy Gun Medium Laser Energy Cannon Advanced Beam Cannon Ballistic Gun Heavy Assault Rifle Ballistic Cannon Improved Light Cannon Launcher Grenade Launcher Build | -11 -10 -10 -9 ------- Run | Yrd Mat Min Mat Slots Evolved 2 | . . . 2 Power . | . . . . Propulsion 1 | . . . 1 Utility 1 | . . . 1 Weapon . | . . . . Parts Attached 36 | 6 12 2 16 Power 5 | 1 2 . 2 Engine 5 | 1 2 . 2 Core . | . . . . Reactor . | . . . . Propulsion 13 | 2 5 1 5 Treads . | . . . . Leg 7 | 2 . . 5 Wheel . | . . . . Hover 6 | . 5 1 . Flight . | . . . . Utility 7 | 1 3 . 3 Device 1 | . . . 1 Storage 2 | 1 . . 1 Processor 1 | . 1 . . Hackware . | . . . . Protection 3 | . 2 . 1 Artifact . | . . . . Weapon 11 | 2 2 1 6 Energy Gun 1 | 1 . . . Energy Cannon 1 | . . . 1 Ballistic Gun 7 | 1 1 1 4 Ballistic Cannon 1 | . 1 . . Launcher 1 | . . . 1 Special Weapon . | . . . . Impact Weapon . | . . . . Slashing Weapon . | . . . . Piercing Weapon . | . . . . Special Melee Weapon . | . . . . Unidentified Prototypes 1 | . . . 1 Parts Lost 21 | . 5 1 15 Power 4 | . 2 . 2 Propulsion 9 | . 2 1 6 Utility 4 | . 1 . 3 Weapon 4 | . . . 4 Highest Loss Streak 9 | . 2 1 9 To Critical Strikes . | . . . . Average Slot Usage (%) 92 | . 97 98 80 Engine 12 | . 13 14 8 Leg 9 | . . . 27 Hover 18 | . 27 26 1 Storage 13 | . 14 14 11 Protection 11 | . 12 14 6 Ballistic Gun 15 | . 13 14 18 Ballistic Cannon 9 | . 13 14 . Peak Build Rating 15 | 6 11 11 15 Average Rating 10 | 4 10 10 11 On Entrance 6 | . 6 11 10 Naked Turns . | . . . . Heaviest Build 37 | 12 18 17 37 Greatest Support 30 | 20 20 14 30 Greatest Overweight (x) 6 | . 2 2 6 Average Overweight (x) . | . . 1 . Largest Inventory Capacity 15 | 8 8 8 15 Average Capacity 9 | 7 8 8 14 Most Carried 15 | 4 8 8 15 Average Carried 8 | 1 7 7 12 Final Capacity 15 | 8 8 8 15 Final Carried 14 | 4 7 8 14 Class Distribution -------------------- 76% | Mutant 23% | Scavenger-Mutant Dominant Class ---------------- Mutant | -10/Materials Mutant | -10/Mines Scavenger-Mutant | -9/Materials Resources | -11 -10 -10 -9 ----------- Run | Yrd Mat Min Mat Matter Collected 1363 | 169 437 205 552 Remotely . | . . . . Salvage Created 1481 | . 436 127 918 Parts 98 | . 40 10 48 Haulers Intercepted 3 | . . . 3 Recyclers Shooed 2 | . 2 . . Parts Field Recycled . | . . . . Retrieved Matter . | . . . . Parts Self-Destructed . | . . . . Prevented . | . . . . Kills | -11 -10 -10 -9 ------- Run | Yrd Mat Min Mat Combat Hostiles Destroyed 37 | . 15 5 17 Guns 18 | . 4 2 12 Cannons 18 | . 11 3 4 AOE 1 | . . . 1 Classes Destroyed 11 | . 8 . 3 Worker 4 | . 1 1 2 Builder 1 | . 1 . . Tunneler 2 | . 1 . 1 Hauler 3 | . . . 3 Recycler 1 | . 1 . . Operator 2 | . 2 . . Watcher 2 | . 2 . . Swarmer 9 | . 6 3 . Grunt 26 | . 9 2 15 Brawler 1 | . . . 1 Sentry 1 | . . . 1 Best Kill Streak 5 | . 5 3 4 Combat Bots Only 3 | . 3 3 3 Max Kills in Single Turn 2 | . 1 2 2 Gunslinging . | . . . . Exploded 1 | . . . 1 Melee . | . . . . Uniques/NPCs Destroyed . | . . . . Combat | -11 -10 -10 -9 -------- Run | Yrd Mat Min Mat Hostile Shots Fired 237 | . 68 22 147 Missed 57 | . 11 6 40 Damage Taken 2344 | . 559 230 1555 Core 523 | . 88 32 403 Absorbed by Shields . | . . . . Core Remaining (%) 76 | 100 . 52 . Volleys Fired 162 | 3 71 17 71 Largest 2 | 1 2 2 2 Hottest 91 | 50 59 59 91 Shots Fired 320 | 3 141 35 141 Gun 218 | 3 70 18 127 Cannon 101 | . 71 17 13 Launcher 1 | . . . 1 Special . | . . . . Kinetic 303 | . 141 35 127 Thermal 16 | 3 . . 13 Explosive 1 | . . . 1 Electromagnetic . | . . . . Robot Hit Streak 8 | 3 8 4 8 Robot Miss Streak 5 | . 4 5 4 Penetration Max . | . . . . Secondary Targets 1 | . . . 1 Max Gunslinging Chain 1 | . . . 1 Shots Hit Robots 188 | 3 81 17 87 Core Hits 81 | 1 33 9 38 Critical Kills 1 | . 1 . . Critical Parts Destroyed 2 | . 1 . 1 Critical Strikes 9 | 1 5 1 2 Burn 1 | 1 . . . Destroy 4 | . 2 . 2 Blast 4 | . 3 1 . Melee Attacks . | . . . . Impact . | . . . . Slashing . | . . . . Piercing . | . . . . Sneak Attacks . | . . . . Combat Hostiles . | . . . . Follow-up Attacks . | . . . . Damage Inflicted 3047 | 37 1293 278 1439 Guns 1664 | 37 357 138 1132 Cannons 1260 | . 936 140 184 Explosions 123 | . . . 123 Melee . | . . . . Ramming . | . . . . Kinetic 2703 | . 1293 278 1132 Thermal 221 | 37 . . 184 Explosive 123 | . . . 123 Electromagnetic . | . . . . Impact . | . . . . Slashing . | . . . . Piercing . | . . . . Highest Corruption 3 | . 3 3 . Average Corruption 2 | . 2 3 . Corruption Purged . | . . . . Corruption Blocked . | . . . . Effects 22 | . 4 18 . Message Errors 5 | . 2 3 . Matter Fused 5 | . 1 4 . Heat Flow Errors 2 | . . 2 . Energy Discharges 3 | . . 3 . Data Loss (minor) 1 | . . 1 . Data Loss (major) 2 | . . 2 . Misfires 1 | . . 1 . Alerts 2 | . . 2 . Weapon Failures 1 | . 1 . . Overload Shots . | . . . . Overflow Damage 40 | . 40 . . Projectiles 40 | . 40 . . Explosions . | . . . . Melee . | . . . . Knockbacks 13 | . 12 1 . Impact . | . . . . Kinetic 12 | . 11 1 . Secondary 1 | . 1 . . Self-Inflicted Damage 40 | . . . 40 Shots 1 | . . . 1 Rammed . | . . . . Targets Rammed . | . . . . Kicked . | . . . . Crushed . | . . . . Highest Temperature 283 | 30 223 283 162 Average Temperature 57 | 16 61 68 38 Received Heat Transfer 1038 | . 216 168 654 Siege Activations . | . . . . Robots Corrupted . | . . . . Combat Hostiles . | . . . . Parts Fried . | . . . . Impact Corruptions . | . . . . Robots Melted . | . . . . Combat Hostiles . | . . . . Parts Melted . | . . . . Heat Transferred 518 | 185 . . 333 Parts Sabotaged . | . . . . Parts Stolen . | . . . . Parts Stripped . | . . . . Power Chain Reactions . | . . . . Alert | -11 -10 -10 -9 ------- Run | Yrd Mat Min Mat Peak Influence 229 | . 220 192 229 Initial 32 | . . 32 . Average 77 | . 89 51 98 Maximum Alert Level 1 | . 1 . 1 Low Security (%) 95 | 100 87 100 99 Level 1 4 | . 12 . . Level 2 . | . . . . Level 3 . | . . . . Level 4 . | . . . . Level 5 . | . . . . High Security . | . . . . Max Security . | . . . . Squads Dispatched 6 | . 4 . 2 Investigation 5 | . 3 . 2 Extermination . | . . . . Reinforcement 1 | . 1 . . Assault . | . . . . Garrison . | . . . . Intercept . | . . . . Searches Triggered . | . . . . Construction Impeded . | . . . . Haulers Reinforced . | . . . . Active Scanning Responses . | . . . . Cargo Convoy Interrupts . | . . . . Stealth | -11 -10 -10 -9 --------- Run | Yrd Mat Min Mat Distress Signals 4 | . 3 . 1 Communications Jammed . | . . . . Distress Signals . | . . . . Times Spotted 63 | . 27 7 29 Peak Tracking Total 8 | . 4 3 8 Tactical Retreats 2 | . 1 1 . Traps | -11 -10 -10 -9 ------- Run | Yrd Mat Min Mat Traps Triggered 3 | . 3 . . Indirectly . | . . . . Trap Hack Attempts . | . . . . Triggered . | . . . . Disarmed . | . . . . Reprogrammed . | . . . . Reused . | . . . . Traps Extracted . | . . . . Installed . | . . . . Triggered . | . . . . Machines | -11 -10 -10 -9 ---------- Run | Yrd Mat Min Mat Machines Disabled . | . . . . Max in Single Turn . | . . . . Machines Repaired . | . . . . Machines Dismantled . | . . . . Machines Sabotaged . | . . . . Overloaded Fab Kills . | . . . . Hacking | -11 -10 -10 -9 --------- Run | Yrd Mat Min Mat Machines Accessed 11 | . 7 . 4 Terminals 10 | . 6 . 4 Fabricators . | . . . . Repair Stations . | . . . . Recycling Units 1 | . 1 . . Scanalyzers . | . . . . Garrison Access . | . . . . Total Hacks 34 | . 22 . 12 Successful 9 | . 7 . 2 Failed 25 | . 15 . 10 Catastrophic 2 | . 2 . . Database Lockouts . | . . . . Manual 31 | . 19 . 12 Terminals 31 | . 19 . 12 Fabricators . | . . . . Repair Stations . | . . . . Recycling Units 3 | . 3 . . Scanalyzers . | . . . . Garrison Access . | . . . . Terminal Hacks 1 | . . . 1 Branch Access Points 1 | . . . 1 Fabricator Hacks . | . . . . Repair Station Hacks . | . . . . Recycling Unit Hacks 2 | . 2 . . Process 1 | . 1 . . Retrieve Matter 1 | . 1 . . Scanalyzer . | . . . . Garrison Access Hacks . | . . . . Unauthorized Hacks 6 | . 5 . 1 Terminals 6 | . 5 . 1 Botnet 5 | . 4 . 1 Operators 1 | . 1 . . Fabricators . | . . . . Repair Stations . | . . . . Recycling Units . | . . . . Scanalyzers . | . . . . Garrison Access . | . . . . Data Cores Recovered . | . . . . Used . | . . . . Hacking Detections 10 | . 6 . 4 Full Trace Events 5 | . 3 . 2 Feedback Events . | . . . . Feedback Blocked . | . . . . Robot Schematics Acquired . | . . . . Robots Built . | . . . . Authchips . | . . . . Time . | . . . . Total Robot Build Rating . | . . . . Part Schematics Acquired . | . . . . Parts Built . | . . . . Authchips . | . . . . Time . | . . . . Total Part Build Rating . | . . . . Parts Repaired . | . . . . Time . | . . . . Parts Recycled . | . . . . Recycled Matter 158 | . 158 . . Retrieved Matter 291 | . 291 . . Retrieved Components . | . . . . Parts Scanalyzed . | . . . . Part Schematics Acquired . | . . . . Parts Damaged . | . . . . Bothacking | -11 -10 -10 -9 ------------ Run | Yrd Mat Min Mat Used RIF Installer . | . . . . Robots Hacked . | . . . . Non-combat . | . . . . Combat . | . . . . Robot Hacks Applied . | . . . . Relay Couplers Released . | . . . . Fabnet Peak Effective % . | . . . . Robots Rewired . | . . . . Allies Hacked . | . . . . Hacks Repelled . | . . . . Allies | -11 -10 -10 -9 -------- Run | Yrd Mat Min Mat Total Allies . | . . . . Largest Group . | . . . . Highest-Rated Group . | . . . . Highest-Rated Ally . | . . . . Total Orders . | . . . . Ally Attacks . | . . . . Total Damage . | . . . . Kills . | . . . . Allies Corrupted . | . . . . Allies Melted . | . . . . Intel | -11 -10 -10 -9 ------- Run | Yrd Mat Min Mat Robot Analysis Total . | . . . . Derelict Logs Recovered 2 | . . 2 . Drone Launches . | . . . . Drone Recoveries . | . . . . Exploration | -11 -10 -10 -9 ------------- Run | Yrd Mat Min Mat Turns Passed 3185 | 81 1062 1029 1013 Spaces Moved 1992 | 61 726 800 405 Core 22 | 15 . . 7 Treads . | . . . . Legs 420 | 46 4 . 370 Wheels . | . . . . Hover 1550 | . 722 800 28 Flight . | . . . . Fastest Speed 50 | 50 56 116 116 Average Speed 124 | 102 102 118 179 Slowest Speed 350 | 120 180 180 350 Overloaded Moves . | . . . . Propulsion Burnouts . | . . . . Robots Hopped . | . . . . Cave-ins Triggered . | . . . . Exploration Rate (%) 57 | 5 78 100 46 Regions Visited 3 Branch Regions 1 Pre-discovered Areas 1 | . . 1 . Known Exits Taken . | . . . . Unknown Exits Taken 3 | 1 1 1 . Scrap Searched 3 | . . 3 . Spaces Dug . | . . . . Terrain Destroyed 13 | . 4 . 9 Melee . | . . . . Projectile 4 | . 4 . . AOE 9 | . . . 9 Terrain Rammed . | . . . . Walls Destroyed . | . . . . Machines Disabled . | . . . . Actions | -11 -10 -10 -9 --------- Run | Yrd Mat Min Mat Total 2378 | 73 909 846 550 Wait 146 | . 85 21 40 Move 1989 | 60 725 799 405 Hop . | . . . . Pick Up 30 | 4 12 4 10 Fast Attach 17 | 6 3 . 8 Attach 8 | . 5 1 2 Detach 1 | . . . 1 Swap 12 | . 4 1 7 Drop 13 | . 4 3 6 Fire 162 | 3 71 17 71 Melee . | . . . . Ram . | . . . . Kick . | . . . . Crush . | . . . . Escape Stasis . | . . . . Rewire . | . . . . Trap . | . . . . Miscellaneous . | . . . . Route ------- -11/Scrapyard -10/Materials (discovered 2 exits: *Mat / [*Min]) -10/Mines (discovered 2 exits: *Mat x2) -9/Materials (discovered 5 exits: [*Mat x2] / *Min x2 / *Sto) History --------- Turn | Location | Event 4 | -11/Scrapyard | Discovered new exit (range 15) 82 | -11/Scrapyard | Entered Materials 305 | -10/Materials | Build established: Mutant 401 | -10/Materials | Discovered new exit (range 16) 1125 | -10/Materials | Discovered new exit (range 15) 1144 | -10/Materials | Entered Mines 1168 | -10/Mines | Discovered new exit (range 9) 1274 | -10/Mines | Received a Rocket Launcher from a helpful Derelict 1317 | -10/Mines | Discovered new exit (range 10) 1444 | -10/Mines | Learned Materials garrison access intel 1596 | -10/Mines | Learned Materials terminal intel 1845 | -10/Mines | Learned location of Storage (-9) 2173 | -10/Mines | Entered Materials 2173 | -9/Materials | Evolved 2 slots: Propulsion x1, Utility x1 2174 | -9/Materials | Loaded intel: 12 terminal locations 2265 | -9/Materials | Lost 4 parts (1p2n1u) 2682 | -9/Materials | Discovered new exit (range 11) 2706 | -9/Materials | Build established: Scavenger-Mutant 3020 | -9/Materials | Identified exit to Mines 3020 | -9/Materials | Identified exit to Storage 3032 | -9/Materials | Discovered new exit (range 6) 3152 | -9/Materials | Core integrity fell below 50% 3181 | -9/Materials | Core integrity fell below 20% 3186 | -9/Materials | Destroyed by Y-45 Defender with Heavy Assault Rifle Last Messages --------------- (85,91) Mines (10,82) Mines (85,65) Storage Map updated. EXIT=FOUND Lgt. Armor Plating destroyed. Critical hit (Burn: +37). Hvy. Assault Rifle destroyed. Aluminum Leg destroyed. G-34 Mercenary destroyed. Hvy. Assault Rifle destroyed. Aluminum Leg destroyed. Critical hit (Burn: +37). G-34 Mercenary destroyed. Grenade Launcher destroyed. Critical hit (Burn: +37). Imp. Ion Engine destroyed. Aluminum Leg destroyed. Sensor Array destroyed. Critical hit (Burn: +37). Map ----- +----------------------------------------------------+ | ????????????????????? > ???????????? | | ?????????????????????? ???????????? | | ?????????????????????? ???????????? | | ??????????????????????# #???????????? | | ??????????????????????# #???????????? | | ??????????????????????# #####+#####?? | | ?????????????#####+#### # """ [ #?? | | ??????????#?? # # """ #?? | | ?????????## #? # # """ #?? | | ?????????? # """"""" # # #?? | | ??????????? + """"""" + [ #?? | | ????????????# """"""" # %= "" #? | | ????????????# """"""" # =%= S"" #?? | | ???? ???????# """"""" # "" #?? | | ???? ???"T"?# # #####?? | | ???? ???"""?####+###### ############? | | ???? ??????????# #????# #?? # | | ???? ??????????# #????# #? # | | ???? ??????????# #????# # # | | ???? ??????????# #????# Y # # | | ???# #?????????# #????# + # | | ???# #?????????# #????# Y# # | | ???# #?????????# #???## Y ##?#######??? | | ???# +?????????# #??## ##?????????? | | ???# #?????????# #??# l #?????????? | | ???# #?????????# #??# @ #?????????? | | ???# #?????????# #??# > #?????????? | | #### ########### #??# #?????????? | | #??#"" ""#?????????? | | ##################??##"|||"##?????????? | | ?????????????????????##"""##??????????? | | ??????????????????????####????????????? | | ??????????????????????????????????????? | | ??????????????????????????????????????? | | ??????????????????????????????????????? | | | | | | | | | | | | | | | | | | | | | | | | | | | | | | | +----------------------------------------------------+ Best States ------------- Heat Dissipation 28 Energy Generation 12 Energy Capacity 265 Matter Stores 300 Matter Capacity 300 Sight Range 16 Robot Scan Range 14 Terrain Scan Density 10 Armor Coverage 150 Evasion (%) 55 Item Schematics ----------------- None Robot Schematics ------------------ None Fabricated ------------ Nothing Alien Tech Used ----------------- None Achievements -------------- None Challenges ------------ None Game ------ Seed AmuletTerrabombPerforator Manual? 0 Play Time 00:23:53 Cumulative 20.6 hours Start 2025.03.16 @ 16:48:24 End 2025.03.16 @ 17:11:11 Sessions 1 Manual Loads 0 Difficulty Rogue Special Mode None Game No. 26 Rogue 26 Adventurer 0 Explorer 0 Win Type - Total 0 Types 0/0/0/0/0/0/0/0/0 Lore% 9 Gallery% 20 Achievement% 19 Wizard Run 0 Options --------- Layout 1 ASCII 0 Keyboard 1 Movement Numpad Keybinds 0 Fullscreen 1 Font 32/SmallcapsGlow Map View 50x35 Zoom Use 0% Tactical HUD 0 Map Filters NONE Filters NONE Steam 1 RUN: 94dcc1cb-f9f5-4603-a199-27c9affac330